[Event "Titled Tuesday Blitz January 31 Late 2023"]
[White "Grycel, Kamil"]
[Black "Rosen, Eric"]
[WhiteFideId "1115499"]
[BlackFideId "2032562"]
[WhiteElo "2315"]
[BlackElo "2349"]
[Result "1-0"]
[Round "07"]
[TimeControl "180+2"]
[Date "2023.01.31"]
[WhiteClock "0:00:16"]
[BlackClock "0:00:02"]

1. d4 {[%clk 0:03:00]}  d5 {[%clk 0:02:59]} 2. c4 {[%clk 0:02:59]}  e6 {[%clk 0:02:59]} 3. Nc3 {[%clk 0:02:58]}  Nf6 {[%clk 0:02:59]} 4. cxd5 {[%clk 0:02:58]}  exd5 {[%clk 0:03:00]} 5. Bg5 {[%clk 0:02:57]}  c6 {[%clk 0:03:00]} 6. e3 {[%clk 0:02:57]}  h6 {[%clk 0:02:59]} 7. Bh4 {[%clk 0:02:56]}  Bd6 {[%clk 0:03:00]} 8. Bd3 {[%clk 0:02:56]}  O-O {[%clk 0:03:00]} 9. Qc2 {[%clk 0:02:54]}  Re8 {[%clk 0:03:00]} 10. Nge2 {[%clk 0:02:47]}  a5 {[%clk 0:03:00]} 11. Bg3 {[%clk 0:02:36]}  Na6 {[%clk 0:02:55]} 12. a3 {[%clk 0:02:35]}  Nc7 {[%clk 0:02:55]} 13. O-O {[%clk 0:02:30]}  Ne6 {[%clk 0:02:50]} 14. Na4 {[%clk 0:02:07]}  Bxg3 {[%clk 0:02:40]} 15. Nxg3 {[%clk 0:02:05]}  h5 {[%clk 0:02:34]} 16. h3 {[%clk 0:01:40]}  g6 {[%clk 0:02:29]} 17. Ne2 {[%clk 0:01:20]}  Ng7 {[%clk 0:02:29]} 18. b4 {[%clk 0:01:06]}  Bf5 {[%clk 0:02:20]} 19. Nc5 {[%clk 0:01:04]}  Qe7 {[%clk 0:02:15]} 20. Rfc1 {[%clk 0:00:57]}  axb4 {[%clk 0:01:58]} 21. axb4 {[%clk 0:00:57]}  Bxd3 {[%clk 0:01:34]} 22. Nxd3 {[%clk 0:00:53]}  Nf5 {[%clk 0:01:32]} 23. Ne5 {[%clk 0:00:50]}  Nd6 {[%clk 0:01:30]} 24. Nf4 {[%clk 0:00:42]}  Nfe4 {[%clk 0:01:20]} 25. Nfd3 {[%clk 0:00:36]}  h4 {[%clk 0:01:10]} 26. Nf3 {[%clk 0:00:36]}  Qf6 {[%clk 0:01:05]} 27. Nde5 {[%clk 0:00:35]}  Nc4 {[%clk 0:00:57]} 28. Nd7 {[%clk 0:00:27]}  Qf5 {[%clk 0:00:53]} 29. Nc5 {[%clk 0:00:22]}  Rxa1 {[%clk 0:00:26]} 30. Rxa1 {[%clk 0:00:23]}  b6 {[%clk 0:00:27]} 31. Nxe4 {[%clk 0:00:23]}  Rxe4 {[%clk 0:00:26]} 32. Nd2 {[%clk 0:00:23]}  Nxd2 {[%clk 0:00:20]} 33. Qxd2 {[%clk 0:00:24]}  Re6 {[%clk 0:00:16]} 34. Ra7 {[%clk 0:00:24]}  Qb1+ {[%clk 0:00:14]} 35. Kh2 {[%clk 0:00:23]}  Rf6 {[%clk 0:00:14]} 36. Ra2 {[%clk 0:00:12]}  Kg7 {[%clk 0:00:13]} 37. Rb2 {[%clk 0:00:12]}  Qf1 {[%clk 0:00:12]} 38. Qe2 {[%clk 0:00:12]}  Qa1 {[%clk 0:00:10]} 39. Ra2 {[%clk 0:00:12]}  Qc3 {[%clk 0:00:10]} 40. Rb2 {[%clk 0:00:12]}  b5 {[%clk 0:00:07]} 41. Rd2 {[%clk 0:00:11]}  Qxb4 {[%clk 0:00:07]} 42. Rb2 {[%clk 0:00:11]}  Qd6+ {[%clk 0:00:08]} 43. Kg1 {[%clk 0:00:11]}  Qe7 {[%clk 0:00:08]} 44. Qc2 {[%clk 0:00:11]}  Re6 {[%clk 0:00:07]} 45. Rb3 {[%clk 0:00:12]}  Qf6 {[%clk 0:00:07]} 46. Rb1 {[%clk 0:00:12]}  Qf5 {[%clk 0:00:05]} 47. Rc1 {[%clk 0:00:13]}  Qxc2 {[%clk 0:00:05]} 48. Rxc2 {[%clk 0:00:14]}  Kf6 {[%clk 0:00:05]} 49. Kf1 {[%clk 0:00:14]}  Ke7 {[%clk 0:00:06]} 50. Ke2 {[%clk 0:00:15]}  Kd6 {[%clk 0:00:06]} 51. Kf3 {[%clk 0:00:15]}  Kc7 {[%clk 0:00:03]} 52. Kg4 {[%clk 0:00:16]}  Re4+ {[%clk 0:00:04]} 53. Kg5 {[%clk 0:00:16]}  Kd7 {[%clk 0:00:02]} 54. Kf6 {[%clk 0:00:16]}  Re6+ {[%clk 0:00:02]} 55. Kxf7 {[%clk 0:00:16]}  Rd6 {[%clk 0:00:01]} 56. Ra2 {[%clk 0:00:16]}  b4 {[%clk 0:00:01]} 57. Ra7+ {[%clk 0:00:16]}  Kc8 {[%clk 0:00:02]} 58. Ke7 {[%clk 0:00:16]} 1-0


[Site "https://www.chess.com"]

[Event "Titled Tuesday Blitz January 31 Late 2023"]
[White "Donskov, Anatoly"]
[Black "EREBUNI91"]
[WhiteFideId "24143413"]
[WhiteElo "2279"]
[BlackElo "2685"]
[Result "0-1"]
[Round "07"]
[TimeControl "180+2"]
[Date "2023.01.31"]
[WhiteClock "0:00:01"]
[BlackClock "0:00:05"]

1. e4 {[%clk 0:03:00]}  c5 {[%clk 0:02:59]} 2. Nf3 {[%clk 0:03:01]}  d6 {[%clk 0:02:59]} 3. d4 {[%clk 0:03:01]}  cxd4 {[%clk 0:03:00]} 4. Nxd4 {[%clk 0:03:02]}  Nf6 {[%clk 0:03:00]} 5. Nc3 {[%clk 0:03:03]}  a6 {[%clk 0:03:00]} 6. f4 {[%clk 0:03:01]}  e5 {[%clk 0:02:46]} 7. Nf3 {[%clk 0:03:01]}  Nbd7 {[%clk 0:02:40]} 8. a4 {[%clk 0:03:01]}  Qc7 {[%clk 0:02:38]} 9. Bd3 {[%clk 0:03:01]}  Be7 {[%clk 0:02:36]} 10. O-O {[%clk 0:03:01]}  O-O {[%clk 0:02:36]} 11. Kh1 {[%clk 0:03:02]}  Nc5 {[%clk 0:02:35]} 12. Qe2 {[%clk 0:03:02]}  Bd7 {[%clk 0:02:12]} 13. fxe5 {[%clk 0:03:01]}  dxe5 {[%clk 0:02:11]} 14. Bg5 {[%clk 0:03:01]}  Bc6 {[%clk 0:02:06]} 15. Nh4 {[%clk 0:03:01]}  Ne6 {[%clk 0:01:42]} 16. Bd2 {[%clk 0:02:19]}  g6 {[%clk 0:01:33]} 17. Nf3 {[%clk 0:01:27]}  Rad8 {[%clk 0:01:19]} 18. Qf2 {[%clk 0:01:03]}  Nh5 {[%clk 0:00:40]} 19. Bh6 {[%clk 0:00:56]}  Rfe8 {[%clk 0:00:40]} 20. Nd2 {[%clk 0:00:30]}  Bc5 {[%clk 0:00:29]} 21. Be3 {[%clk 0:00:13]}  Bxe3 {[%clk 0:00:28]} 22. Qxe3 {[%clk 0:00:14]}  Nhf4 {[%clk 0:00:26]} 23. Rad1 {[%clk 0:00:13]}  Nxd3 {[%clk 0:00:26]} 24. cxd3 {[%clk 0:00:14]}  Nf4 {[%clk 0:00:26]} 25. Nc4 {[%clk 0:00:11]}  f6 {[%clk 0:00:21]} 26. b3 {[%clk 0:00:09]}  b5 {[%clk 0:00:20]} 27. axb5 {[%clk 0:00:09]}  axb5 {[%clk 0:00:21]} 28. Nb2 {[%clk 0:00:10]}  Rd7 {[%clk 0:00:21]} 29. Ne2 {[%clk 0:00:08]}  Nxe2 {[%clk 0:00:20]} 30. Qxe2 {[%clk 0:00:09]}  Kg7 {[%clk 0:00:20]} 31. Rc1 {[%clk 0:00:09]}  Qb6 {[%clk 0:00:19]} 32. Qf3 {[%clk 0:00:06]}  Bb7 {[%clk 0:00:20]} 33. Qg3 {[%clk 0:00:05]}  Red8 {[%clk 0:00:19]} 34. Qh4 {[%clk 0:00:05]}  Rxd3 {[%clk 0:00:16]} 35. Nxd3 {[%clk 0:00:05]}  Rxd3 {[%clk 0:00:16]} 36. Qg4 {[%clk 0:00:05]}  Rd4 {[%clk 0:00:15]} 37. Rfe1 {[%clk 0:00:05]}  h5 {[%clk 0:00:15]} 38. Qf3 {[%clk 0:00:05]}  Qd6 {[%clk 0:00:14]} 39. h3 {[%clk 0:00:05]}  f5 {[%clk 0:00:15]} 40. Qe2 {[%clk 0:00:03]}  Bxe4 {[%clk 0:00:15]} 41. Qxb5 {[%clk 0:00:03]}  Rd2 {[%clk 0:00:15]} 42. Re2 {[%clk 0:00:04]}  Rd5 {[%clk 0:00:08]} 43. Qc4 {[%clk 0:00:04]}  Bd3 {[%clk 0:00:07]} 44. Qc7+ {[%clk 0:00:03]}  Kh6 {[%clk 0:00:07]} 45. Qxd6 {[%clk 0:00:03]}  Rxd6 {[%clk 0:00:08]} 46. Rd2 {[%clk 0:00:03]}  e4 {[%clk 0:00:08]} 47. b4 {[%clk 0:00:03]}  Rb6 {[%clk 0:00:08]} 48. Rb2 {[%clk 0:00:02]}  f4 {[%clk 0:00:07]} 49. g3 {[%clk 0:00:02]}  Kg5 {[%clk 0:00:07]} 50. gxf4+ {[%clk 0:00:02]}  Kxf4 {[%clk 0:00:08]} 51. Kg2 {[%clk 0:00:03]}  Ke3 {[%clk 0:00:08]} 52. Re1+ {[%clk 0:00:02]}  Kd4 {[%clk 0:00:08]} 53. b5 {[%clk 0:00:02]}  Rxb5 {[%clk 0:00:07]} 54. Rxb5 {[%clk 0:00:02]}  Bxb5 {[%clk 0:00:08]} 55. Kf2 {[%clk 0:00:02]}  Bd3 {[%clk 0:00:07]} 56. h4 {[%clk 0:00:02]}  Ke5 {[%clk 0:00:06]} 57. Ke3 {[%clk 0:00:02]}  Kf5 {[%clk 0:00:07]} 58. Rg1 {[%clk 0:00:03]}  Kf6 {[%clk 0:00:07]} 59. Rg5 {[%clk 0:00:03]}  Bc2 {[%clk 0:00:05]} 60. Rc5 {[%clk 0:00:03]}  Bd3 {[%clk 0:00:05]} 61. Ra5 {[%clk 0:00:04]}  Kf7 {[%clk 0:00:05]} 62. Ra3 {[%clk 0:00:03]}  Kf6 {[%clk 0:00:06]} 63. Ra5 {[%clk 0:00:04]}  Kg7 {[%clk 0:00:06]} 64. Rc5 {[%clk 0:00:04]}  Kh6 {[%clk 0:00:06]} 65. Kf4 {[%clk 0:00:04]}  Kg7 {[%clk 0:00:06]} 66. Rc7+ {[%clk 0:00:04]}  Kf6 {[%clk 0:00:06]} 67. Rc6+ {[%clk 0:00:05]}  Kf7 {[%clk 0:00:06]} 68. Rb6 {[%clk 0:00:04]}  Kg7 {[%clk 0:00:06]} 69. Re6 {[%clk 0:00:03]}  Kf7 {[%clk 0:00:06]} 70. Re5 {[%clk 0:00:03]}  Kf6 {[%clk 0:00:06]} 71. Re8 {[%clk 0:00:04]}  Kf7 {[%clk 0:00:06]} 72. Rd8 {[%clk 0:00:04]}  Ke7 {[%clk 0:00:06]} 73. Rb8 {[%clk 0:00:03]}  Kf7 {[%clk 0:00:06]} 74. Rb7+ {[%clk 0:00:03]}  Kf6 {[%clk 0:00:07]} 75. Rb6+ {[%clk 0:00:04]}  Kf7 {[%clk 0:00:07]} 76. Rb4 {[%clk 0:00:03]}  Kf6 {[%clk 0:00:07]} 77. Rd4 {[%clk 0:00:03]}  Kf7 {[%clk 0:00:08]} 78. Kg5 {[%clk 0:00:04]}  Ke6 {[%clk 0:00:07]} 79. Rb4 {[%clk 0:00:03]}  e3 {[%clk 0:00:06]} 80. Rb3 {[%clk 0:00:03]}  e2 {[%clk 0:00:06]} 81. Rb6+ {[%clk 0:00:01]}  Kd7 {[%clk 0:00:05]} 82. Rb7+ {[%clk 0:00:01]}  Kd8 {[%clk 0:00:05]} 83. Rb8+ {[%clk 0:00:01]}  Ke7 {[%clk 0:00:05]} 0-1


[Site "https://www.chess.com"]

[Event "Titled Tuesday Blitz January 31 Late 2023"]
[White "Aldokhin, Ivan"]
[Black "Danielyan, Vahe"]
[WhiteFideId "24115720"]
[BlackFideId "13304828"]
[WhiteElo "2413"]
[BlackElo "2346"]
[Result "1-0"]
[Round "07"]
[TimeControl "180+2"]
[Date "2023.01.31"]
[WhiteClock "0:00:05"]
[BlackClock "0:00:01"]

1. e4 {[%clk 0:03:00]}  c6 {[%clk 0:02:56]} 2. Nf3 {[%clk 0:03:01]}  d5 {[%clk 0:02:56]} 3. Nc3 {[%clk 0:03:02]}  Bg4 {[%clk 0:02:54]} 4. h3 {[%clk 0:03:01]}  Bxf3 {[%clk 0:02:54]} 5. Qxf3 {[%clk 0:03:01]}  e6 {[%clk 0:02:53]} 6. d3 {[%clk 0:03:00]}  Nd7 {[%clk 0:02:53]} 7. Bd2 {[%clk 0:03:00]}  Bc5 {[%clk 0:02:52]} 8. g4 {[%clk 0:02:59]}  Ne7 {[%clk 0:02:52]} 9. Bg2 {[%clk 0:03:00]}  O-O {[%clk 0:02:51]} 10. Qg3 {[%clk 0:02:57]}  a5 {[%clk 0:02:50]} 11. f4 {[%clk 0:02:56]}  a4 {[%clk 0:02:50]} 12. Ne2 {[%clk 0:02:34]}  a3 {[%clk 0:02:48]} 13. b3 {[%clk 0:02:34]}  Qb6 {[%clk 0:02:45]} 14. O-O-O {[%clk 0:02:05]}  Bf2 {[%clk 0:02:37]} 15. Qf3 {[%clk 0:02:01]}  f5 {[%clk 0:02:38]} 16. exf5 {[%clk 0:01:32]}  exf5 {[%clk 0:02:35]} 17. d4 {[%clk 0:01:32]}  Bxd4 {[%clk 0:02:29]} 18. Nxd4 {[%clk 0:01:33]}  Qxd4 {[%clk 0:02:30]} 19. Bc3 {[%clk 0:01:33]}  fxg4 {[%clk 0:02:12]} 20. hxg4 {[%clk 0:01:10]}  Qxf4+ {[%clk 0:02:10]} 21. Qxf4 {[%clk 0:01:10]}  Rxf4 {[%clk 0:02:10]} 22. g5 {[%clk 0:01:11]}  Nf5 {[%clk 0:01:45]} 23. Bh3 {[%clk 0:01:03]}  Re8 {[%clk 0:01:42]} 24. Rhf1 {[%clk 0:00:58]}  Rxf1 {[%clk 0:01:40]} 25. Rxf1 {[%clk 0:00:58]}  g6 {[%clk 0:01:37]} 26. Bxf5 {[%clk 0:00:55]}  gxf5 {[%clk 0:01:38]} 27. Rxf5 {[%clk 0:00:49]}  Re3 {[%clk 0:01:37]} 28. Bb4 {[%clk 0:00:47]}  Re5 {[%clk 0:01:26]} 29. Rf1 {[%clk 0:00:33]}  Rxg5 {[%clk 0:01:25]} 30. Bxa3 {[%clk 0:00:34]}  h5 {[%clk 0:01:25]} 31. Re1 {[%clk 0:00:22]}  Re5 {[%clk 0:01:19]} 32. Rg1+ {[%clk 0:00:22]}  Kf7 {[%clk 0:01:16]} 33. Bb2 {[%clk 0:00:23]}  Rf5 {[%clk 0:01:10]} 34. Rg7+ {[%clk 0:00:23]}  Ke6 {[%clk 0:01:07]} 35. Rh7 {[%clk 0:00:24]}  b5 {[%clk 0:01:04]} 36. a4 {[%clk 0:00:18]}  bxa4 {[%clk 0:01:04]} 37. bxa4 {[%clk 0:00:18]}  Nc5 {[%clk 0:01:01]} 38. a5 {[%clk 0:00:15]}  Rf1+ {[%clk 0:01:01]} 39. Kd2 {[%clk 0:00:14]}  Rf2+ {[%clk 0:01:02]} 40. Kd1 {[%clk 0:00:13]}  Rh2 {[%clk 0:00:55]} 41. Rh6+ {[%clk 0:00:13]}  Kd7 {[%clk 0:00:51]} 42. Be5 {[%clk 0:00:13]}  Rh1+ {[%clk 0:00:48]} 43. Ke2 {[%clk 0:00:13]}  h4 {[%clk 0:00:14]} 44. Rd6+ {[%clk 0:00:13]}  Ke7 {[%clk 0:00:14]} 45. Rxc6 {[%clk 0:00:12]}  Ne6 {[%clk 0:00:12]} 46. a6 {[%clk 0:00:11]}  h3 {[%clk 0:00:10]} 47. a7 {[%clk 0:00:11]}  h2 {[%clk 0:00:11]} 48. a8=Q {[%clk 0:00:02]}  Re1+ {[%clk 0:00:10]} 49. Kxe1 {[%clk 0:00:03]}  h1=Q+ {[%clk 0:00:10]} 50. Kd2 {[%clk 0:00:03]}  Qg2+ {[%clk 0:00:04]} 51. Kc1 {[%clk 0:00:04]}  Qf1+ {[%clk 0:00:02]} 52. Kb2 {[%clk 0:00:04]}  Qb5+ {[%clk 0:00:01]} 53. Ka2 {[%clk 0:00:05]} 1-0


[Site "https://www.chess.com"]

[Event "Titled Tuesday Blitz January 31 Late 2023"]
[White "Martinez Reyes, Pedro Ramon"]
[Black "Shubenkova, Veronika"]
[WhiteFideId "3901807"]
[BlackFideId "44124040"]
[WhiteElo "2376"]
[BlackElo "1960"]
[Result "1-0"]
[Round "07"]
[TimeControl "180+2"]
[Date "2023.01.31"]
[WhiteClock "0:01:20"]
[BlackClock "0:00:03"]

1. e4 {[%clk 0:02:56]}  c6 {[%clk 0:02:59]} 2. d3 {[%clk 0:02:55]}  d5 {[%clk 0:02:59]} 3. Nf3 {[%clk 0:02:56]}  g6 {[%clk 0:02:59]} 4. Nc3 {[%clk 0:02:53]}  Bg7 {[%clk 0:02:59]} 5. d4 {[%clk 0:02:53]}  dxe4 {[%clk 0:02:57]} 6. Nxe4 {[%clk 0:02:54]}  Nf6 {[%clk 0:02:58]} 7. Nxf6+ {[%clk 0:02:54]}  exf6 {[%clk 0:02:55]} 8. Qe2+ {[%clk 0:02:54]}  Be6 {[%clk 0:02:53]} 9. g3 {[%clk 0:02:43]}  O-O {[%clk 0:02:52]} 10. Bg2 {[%clk 0:02:44]}  Re8 {[%clk 0:02:43]} 11. O-O {[%clk 0:02:43]}  Nd7 {[%clk 0:02:31]} 12. Qd1 {[%clk 0:02:37]}  Nb6 {[%clk 0:02:30]} 13. b3 {[%clk 0:02:36]}  Bg4 {[%clk 0:02:26]} 14. Bb2 {[%clk 0:02:34]}  f5 {[%clk 0:02:26]} 15. Qd3 {[%clk 0:02:30]}  Nd5 {[%clk 0:02:24]} 16. a3 {[%clk 0:02:30]}  f4 {[%clk 0:02:20]} 17. c4 {[%clk 0:02:25]}  Nc7 {[%clk 0:02:11]} 18. Rfe1 {[%clk 0:02:25]}  Rxe1+ {[%clk 0:02:10]} 19. Rxe1 {[%clk 0:02:24]}  fxg3 {[%clk 0:02:03]} 20. hxg3 {[%clk 0:02:24]}  Ne6 {[%clk 0:02:00]} 21. Ne5 {[%clk 0:02:22]}  Bf5 {[%clk 0:01:58]} 22. Qe3 {[%clk 0:02:20]}  Nf8 {[%clk 0:01:39]} 23. d5 {[%clk 0:02:17]}  cxd5 {[%clk 0:01:30]} 24. Bxd5 {[%clk 0:02:18]}  Be6 {[%clk 0:01:25]} 25. Bxe6 {[%clk 0:01:49]}  fxe6 {[%clk 0:01:25]} 26. Qf3 {[%clk 0:01:45]}  Qc7 {[%clk 0:01:21]} 27. Qe4 {[%clk 0:01:41]}  Rd8 {[%clk 0:01:16]} 28. Bc3 {[%clk 0:01:40]}  a5 {[%clk 0:00:55]} 29. Re3 {[%clk 0:01:32]}  b6 {[%clk 0:00:47]} 30. Kg2 {[%clk 0:01:32]}  Rd1 {[%clk 0:00:37]} 31. b4 {[%clk 0:01:31]}  Rc1 {[%clk 0:00:26]} 32. c5 {[%clk 0:01:26]}  axb4 {[%clk 0:00:25]} 33. cxb6 {[%clk 0:01:22]}  Qxb6 {[%clk 0:00:22]} 34. Bxb4 {[%clk 0:01:22]}  Qa6 {[%clk 0:00:17]} 35. Nd3 {[%clk 0:01:18]}  Rc6 {[%clk 0:00:15]} 36. Nc5 {[%clk 0:01:17]}  Qb5 {[%clk 0:00:13]} 37. Nd3 {[%clk 0:01:17]}  Qh5 {[%clk 0:00:13]} 38. Nf4 {[%clk 0:01:16]}  Qf5 {[%clk 0:00:11]} 39. Qxc6 {[%clk 0:01:16]}  Bd4 {[%clk 0:00:10]} 40. Rxe6 {[%clk 0:01:12]}  Nxe6 {[%clk 0:00:09]} 41. Qxe6+ {[%clk 0:01:12]}  Qxe6 {[%clk 0:00:09]} 42. Nxe6 {[%clk 0:01:13]}  Ba7 {[%clk 0:00:10]} 43. Bc5 {[%clk 0:01:12]}  Bb8 {[%clk 0:00:10]} 44. Nd4 {[%clk 0:01:13]}  Kf7 {[%clk 0:00:10]} 45. Nc6 {[%clk 0:01:14]}  Bc7 {[%clk 0:00:10]} 46. a4 {[%clk 0:01:14]}  Ke6 {[%clk 0:00:10]} 47. Be3 {[%clk 0:01:12]}  Kd5 {[%clk 0:00:10]} 48. Nd4 {[%clk 0:01:13]}  Kc4 {[%clk 0:00:09]} 49. Ne6 {[%clk 0:01:12]}  Ba5 {[%clk 0:00:08]} 50. Nf8 {[%clk 0:01:12]}  h5 {[%clk 0:00:06]} 51. Nxg6 {[%clk 0:01:12]}  Kb3 {[%clk 0:00:07]} 52. Nf4 {[%clk 0:01:13]}  Kxa4 {[%clk 0:00:06]} 53. Nxh5 {[%clk 0:01:13]}  Kb5 {[%clk 0:00:07]} 54. f4 {[%clk 0:01:14]}  Kc6 {[%clk 0:00:07]} 55. Kf3 {[%clk 0:01:15]}  Kd7 {[%clk 0:00:08]} 56. g4 {[%clk 0:01:16]}  Ke8 {[%clk 0:00:08]} 57. g5 {[%clk 0:01:17]}  Kf7 {[%clk 0:00:09]} 58. f5 {[%clk 0:01:17]}  Bc3 {[%clk 0:00:09]} 59. g6+ {[%clk 0:01:18]}  Kg8 {[%clk 0:00:09]} 60. Bg5 {[%clk 0:01:18]}  Be5 {[%clk 0:00:09]} 61. Bf6 {[%clk 0:01:18]}  Bd6 {[%clk 0:00:08]} 62. Kg4 {[%clk 0:01:19]}  Bf8 {[%clk 0:00:08]} 63. Bd4 {[%clk 0:01:19]}  Bh6 {[%clk 0:00:07]} 64. f6 {[%clk 0:01:19]}  Bc1 {[%clk 0:00:06]} 65. Kf5 {[%clk 0:01:19]}  Ba3 {[%clk 0:00:04]} 66. Ke6 {[%clk 0:01:19]}  Be7 {[%clk 0:00:03]} 67. f7+ {[%clk 0:01:19]}  Kf8 {[%clk 0:00:03]} 68. Bg7# {[%clk 0:01:20]} 1-0


[Site "https://www.chess.com"]

[Event "Titled Tuesday Blitz January 31 Late 2023"]
[White "Bayo Milagro, Alvaro"]
[Black "Dzierzak, Radoslaw"]
[WhiteFideId "22275240"]
[BlackFideId "1161407"]
[WhiteElo "2287"]
[BlackElo "2220"]
[Result "1-0"]
[Round "07"]
[TimeControl "180+2"]
[Date "2023.01.31"]
[WhiteClock "0:00:03"]
[BlackClock "0:00:02"]

1. d4 {[%clk 0:03:00]}  Nf6 {[%clk 0:02:57]} 2. Nf3 {[%clk 0:02:59]}  e6 {[%clk 0:02:58]} 3. c4 {[%clk 0:02:56]}  Bb4+ {[%clk 0:02:58]} 4. Bd2 {[%clk 0:02:54]}  a5 {[%clk 0:02:58]} 5. Nc3 {[%clk 0:02:52]}  b6 {[%clk 0:02:58]} 6. e3 {[%clk 0:02:52]}  Bb7 {[%clk 0:02:57]} 7. Bd3 {[%clk 0:02:53]}  Bxc3 {[%clk 0:02:55]} 8. Bxc3 {[%clk 0:02:50]}  Ne4 {[%clk 0:02:55]} 9. Rc1 {[%clk 0:02:50]}  O-O {[%clk 0:02:50]} 10. O-O {[%clk 0:02:32]}  f5 {[%clk 0:02:50]} 11. Be1 {[%clk 0:02:31]}  d6 {[%clk 0:02:49]} 12. Nd2 {[%clk 0:02:29]}  Nd7 {[%clk 0:02:40]} 13. f3 {[%clk 0:02:26]}  Nef6 {[%clk 0:02:33]} 14. c5 {[%clk 0:02:16]}  bxc5 {[%clk 0:02:29]} 15. Qb3 {[%clk 0:02:13]}  Bd5 {[%clk 0:02:26]} 16. Bc4 {[%clk 0:02:14]}  Rb8 {[%clk 0:02:22]} 17. Qc3 {[%clk 0:01:54]}  cxd4 {[%clk 0:02:15]} 18. Qxd4 {[%clk 0:01:53]}  c5 {[%clk 0:02:10]} 19. Qc3 {[%clk 0:01:53]}  Qb6 {[%clk 0:02:04]} 20. b3 {[%clk 0:01:48]}  Qb4 {[%clk 0:01:53]} 21. Qc2 {[%clk 0:01:46]}  Qb7 {[%clk 0:01:45]} 22. Bxd5 {[%clk 0:01:41]}  Nxd5 {[%clk 0:01:46]} 23. Nc4 {[%clk 0:01:41]}  Ne5 {[%clk 0:01:37]} 24. Nxd6 {[%clk 0:01:14]}  Qb6 {[%clk 0:01:33]} 25. Qxc5 {[%clk 0:01:02]}  Nd3 {[%clk 0:01:27]} 26. Qxb6 {[%clk 0:00:43]}  Rxb6 {[%clk 0:01:28]} 27. Rd1 {[%clk 0:00:38]}  Nxe1 {[%clk 0:01:26]} 28. Nc4 {[%clk 0:00:38]}  Nc2 {[%clk 0:01:20]} 29. Nxb6 {[%clk 0:00:37]}  Nxb6 {[%clk 0:01:16]} 30. Rd6 {[%clk 0:00:36]}  Nd5 {[%clk 0:01:12]} 31. e4 {[%clk 0:00:20]}  fxe4 {[%clk 0:01:09]} 32. fxe4 {[%clk 0:00:19]}  Rxf1+ {[%clk 0:01:06]} 33. Kxf1 {[%clk 0:00:20]}  Nde3+ {[%clk 0:01:04]} 34. Kf2 {[%clk 0:00:18]}  Ng4+ {[%clk 0:01:04]} 35. Kg3 {[%clk 0:00:17]}  Nf6 {[%clk 0:00:43]} 36. Rxe6 {[%clk 0:00:17]}  Kf7 {[%clk 0:00:44]} 37. Re5 {[%clk 0:00:18]}  Nb4 {[%clk 0:00:34]} 38. Rxa5 {[%clk 0:00:10]}  Nxe4+ {[%clk 0:00:34]} 39. Kf4 {[%clk 0:00:10]}  Nc3 {[%clk 0:00:34]} 40. a3 {[%clk 0:00:06]}  Nc6 {[%clk 0:00:26]} 41. Rc5 {[%clk 0:00:06]}  Nd4 {[%clk 0:00:27]} 42. Kg4 {[%clk 0:00:01]}  Ne4 {[%clk 0:00:21]} 43. Rc7+ {[%clk 0:00:02]}  Kf6 {[%clk 0:00:20]} 44. b4 {[%clk 0:00:02]}  g5 {[%clk 0:00:11]} 45. h4 {[%clk 0:00:01]}  gxh4 {[%clk 0:00:08]} 46. Kxh4 {[%clk 0:00:02]}  Kf5 {[%clk 0:00:08]} 47. Kh3 {[%clk 0:00:02]}  h5 {[%clk 0:00:08]} 48. a4 {[%clk 0:00:02]}  Kf4 {[%clk 0:00:03]} 49. b5 {[%clk 0:00:02]}  Nf5 {[%clk 0:00:03]} 50. Kh2 {[%clk 0:00:03]}  h4 {[%clk 0:00:03]} 51. b6 {[%clk 0:00:03]}  Nh6 {[%clk 0:00:01]} 52. b7 {[%clk 0:00:04]}  Ng4+ {[%clk 0:00:02]} 53. Kg1 {[%clk 0:00:04]}  Kg3 {[%clk 0:00:02]} 54. b8=Q {[%clk 0:00:04]}  h3 {[%clk 0:00:02]} 55. gxh3 {[%clk 0:00:03]}  Kxh3 {[%clk 0:00:02]} 56. Rh7+ {[%clk 0:00:03]} 1-0


[Site "https://www.chess.com"]

[Event "Titled Tuesday Blitz January 31 Late 2023"]
[White "Kraus, Tomas"]
[Black "Slade, Theodore"]
[WhiteFideId "331708"]
[BlackFideId "426547"]
[WhiteElo "2473"]
[BlackElo "1995"]
[Result "1-0"]
[Round "07"]
[TimeControl "180+2"]
[Date "2023.01.31"]
[WhiteClock "0:00:50"]
[BlackClock "0:00:06"]

1. e4 {[%clk 0:03:00]}  e5 {[%clk 0:03:00]} 2. Nf3 {[%clk 0:03:00]}  Nc6 {[%clk 0:03:01]} 3. Bb5 {[%clk 0:02:58]}  Nf6 {[%clk 0:03:01]} 4. d3 {[%clk 0:02:54]}  Bc5 {[%clk 0:03:01]} 5. O-O {[%clk 0:02:53]}  Nd4 {[%clk 0:03:00]} 6. Nxd4 {[%clk 0:02:52]}  Bxd4 {[%clk 0:03:01]} 7. Kh1 {[%clk 0:02:48]}  c6 {[%clk 0:02:59]} 8. Ba4 {[%clk 0:02:48]}  O-O {[%clk 0:02:55]} 9. c3 {[%clk 0:02:48]}  Bb6 {[%clk 0:02:55]} 10. Bg5 {[%clk 0:02:47]}  h6 {[%clk 0:02:54]} 11. Bh4 {[%clk 0:02:47]}  d5 {[%clk 0:02:55]} 12. exd5 {[%clk 0:02:42]}  cxd5 {[%clk 0:02:54]} 13. d4 {[%clk 0:02:36]}  e4 {[%clk 0:02:52]} 14. f3 {[%clk 0:02:35]}  e3 {[%clk 0:02:37]} 15. Re1 {[%clk 0:02:29]}  Qe7 {[%clk 0:02:30]} 16. Bxf6 {[%clk 0:02:25]}  gxf6 {[%clk 0:02:26]} 17. Qd3 {[%clk 0:02:24]}  Bc7 {[%clk 0:02:13]} 18. Qxe3 {[%clk 0:02:20]}  Qd6 {[%clk 0:02:11]} 19. Qxh6 {[%clk 0:02:19]}  Bf5 {[%clk 0:02:08]} 20. Nd2 {[%clk 0:02:14]}  Bg6 {[%clk 0:01:56]} 21. Nf1 {[%clk 0:02:11]}  a6 {[%clk 0:01:45]} 22. Ne3 {[%clk 0:02:06]}  Rad8 {[%clk 0:01:30]} 23. Bc2 {[%clk 0:01:52]}  Bxc2 {[%clk 0:01:27]} 24. Nxc2 {[%clk 0:01:53]}  f5 {[%clk 0:01:25]} 25. Qh3 {[%clk 0:01:43]}  f4 {[%clk 0:01:15]} 26. Re5 {[%clk 0:01:39]}  Qg6 {[%clk 0:01:12]} 27. Rh5 {[%clk 0:01:33]}  Rfe8 {[%clk 0:01:03]} 28. Nb4 {[%clk 0:01:28]}  Re2 {[%clk 0:00:48]} 29. Nxd5 {[%clk 0:01:15]}  Rde8 {[%clk 0:00:16]} 30. Rg1 {[%clk 0:01:02]}  Bd6 {[%clk 0:00:12]} 31. Qh4 {[%clk 0:00:52]}  Kg7 {[%clk 0:00:11]} 32. Rg5 {[%clk 0:00:51]}  Rh8 {[%clk 0:00:05]} 33. Rxg6+ {[%clk 0:00:51]}  fxg6 {[%clk 0:00:06]} 34. Qf6+ {[%clk 0:00:52]}  Kh7 {[%clk 0:00:06]} 35. Qxd6 {[%clk 0:00:50]} 1-0


[Site "https://www.chess.com"]